fUSD/lending_fUSD_20250109
["ID","MTS","AMOUNT","RATE_DAILY","PERIOD"]
[348319438,1736443868001,-599.86,0.00011438,2]
[348319439,1736443868011,-500.0,0.00011438,2]
[348319440,1736443868021,-500.0,0.00011438,2]
[348319441,1736443868030,-635.1,0.00011438,2]
[348319442,1736443868040,-1535.05,0.00011438,2]
[348319443,1736443868049,-500.0,0.00011438,2]
[348319444,1736443868058,-551.96,0.00011438,2]
[348319445,1736443868068,-3444.79,0.00011438,2]
[348319446,1736443868078,-1978.41,0.00011438,2]
[348319447,1736443868087,-500.0,0.00011438,2]
[348319448,1736443868097,-500.0,0.00011438,2]
[348319449,1736443868107,-500.0,0.00011438,2]
[348319450,1736443868117,-1866.2,0.00011438,2]
[348319451,1736443868131,-500.0,0.00011438,2]
[348319452,1736443868141,-500.0,0.00011438,2]
[348319453,1736443868151,-500.0,0.00011438,2]
[348319454,1736443868161,-522.76,0.00011438,2]
[348319455,1736443868171,-500.0,0.00011438,2]
[348319456,1736443868180,-500.0,0.00011438,2]
[348319457,1736443868190,-1363.26,0.00011438,2]
[348319458,1736443868200,-930.0,0.00011438,2]
[348319459,1736443868211,-500.0,0.00011438,2]
[348319460,1736443868221,-1261.63,0.00011438,2]
[348319461,1736443868230,-1405.84,0.00011438,2]
[348319462,1736443868239,-527.06,0.00011438,2]
[348319463,1736443868249,-1663.75,0.00011438,2]
[348319464,1736443868259,-500.0,0.00011439,2]
[348319465,1736443868268,-500.0,0.00011439,2]
[348319466,1736443868278,-181.84860194,0.00011439,2]
[348319467,1736443868288,-500.0,0.00011439,2]
[348319468,1736443868298,-500.0,0.00011439,2]
[348319469,1736443868308,-500.0,0.00011439,2]
[348319470,1736443868318,-500.0,0.00011439,2]
[348319471,1736443868328,-500.0,0.00011439,2]
[348319472,1736443868338,-500.0,0.00011439,2]
[348319473,1736443868350,-500.0,0.00011439,2]
[348319474,1736443868359,-500.0,0.00011439,2]
[348319475,1736443868369,-500.0,0.00011439,2]
[348319476,1736443868379,-500.0,0.00011439,2]
[348319477,1736443868388,-500.0,0.00011439,2]
[348319478,1736443868398,-500.0,0.00011439,2]
[348319479,1736443868408,-500.0,0.00011439,2]
[348319480,1736443868418,-500.0,0.00011439,2]
[348319481,1736443868427,-500.0,0.00011439,2]
[348319482,1736443868436,-500.0,0.00011439,2]
[348319483,1736443868446,-500.0,0.00011439,2]
[348319484,1736443868456,-500.0,0.00011439,2]
[348319485,1736443868466,-500.0,0.00011439,2]
[348319486,1736443868476,-500.0,0.00011439,2]
[348319487,1736443868486,-500.0,0.00011439,2]
[348319488,1736443868495,-500.0,0.00011439,2]
[348319489,1736443868506,-500.0,0.00011439,2]
[348319490,1736443868516,-500.0,0.00011439,2]
[348319491,1736443868526,-500.0,0.00011439,2]
[348319492,1736443868536,-500.0,0.00011439,2]
[348319493,1736443868548,-500.0,0.00011439,2]
[348319494,1736443868558,-500.0,0.00011439,2]
[348319495,1736443868568,-500.0,0.00011439,2]
[348319496,1736443868577,-500.0,0.00011439,2]
[348319497,1736443868588,-500.0,0.00011439,2]
[348319498,1736443868599,-1462.51,0.00011439,2]
[348319499,1736443868609,-521.67,0.00011439,2]
[348319500,1736443868619,-503.07,0.00011439,2]
[348319501,1736443868629,-500.0,0.00011439,2]
[348319502,1736443868639,-661.91,0.00011439,2]
[348319503,1736443868649,-500.0,0.00011439,2]
[348319504,1736443868659,-500.0,0.00011439,2]
[348319505,1736443868668,-500.0,0.00011439,2]
[348319506,1736443868678,-822.19,0.00011439,2]
[348319507,1736443868689,-500.0,0.00011439,2]
[348319508,1736443868699,-500.0,0.00011439,2]
[348319509,1736443868709,-500.0,0.00011439,2]
[348319510,1736443868719,-825.41,0.00011439,2]
[348319511,1736443868728,-574.29,0.00011439,2]
[348319512,1736443868738,-500.0,0.00011439,2]
[348319513,1736443868748,-500.0,0.00011439,2]
[348319514,1736443868758,-500.0,0.00011439,2]
[348319515,1736443868769,-1330.43,0.00011439,2]
[348319516,1736443868777,-567.4,0.00011439,2]
[348319517,1736443868787,-1070.83,0.00011439,2]
[348319518,1736443868796,-500.0,0.00011439,2]
[348319519,1736443868807,-1056.15,0.00011439,2]
[348319520,1736443868817,-500.0,0.00011439,2]
[348319521,1736443868827,-528.55,0.00011439,2]
[348319522,1736443868838,-565.52,0.00011439,2]
[348319523,1736443868848,-1685.7,0.00011439,2]
[348319524,1736443868856,-500.0,0.00011439,2]
[348319525,1736443868866,-1146.53,0.00011439,2]
[348319526,1736443868875,-602.79,0.00011439,2]
[348319527,1736443868885,-844.28,0.00011439,2]
[348319528,1736443868894,-500.0,0.00011439,2]
[348319529,1736443868904,-3048.3,0.00011439,2]
[348319530,1736443868913,-3916.43,0.00011439,2]
[348319531,1736443868923,-2673.05,0.00011439,2]
[348319532,1736443868933,-1201.14,0.00011439,2]
[348319533,1736443868942,-2023.47,0.00011439,2]
[348319534,1736443868952,-1552.42,0.00011439,2]
[348319535,1736443868962,-1498.72,0.00011439,2]
[348319536,1736443868971,-2673.28,0.00011439,2]
[348319537,1736443868981,-650.14,0.00011439,2]
[348319538,1736443868990,-1177.59,0.00011439,2]
[348319539,1736443869000,-5086.94,0.00011439,2]
[348319540,1736443869010,-1609.3,0.00011439,2]
[348319541,1736443869020,-1933.69,0.00011439,2]
[348319542,1736443869029,-845.45,0.00011439,2]
[348319543,1736443869038,-1751.61,0.00011439,2]
[348319544,1736443869052,-2165.88,0.00011439,2]
[348319545,1736443869070,-1286.42,0.00011439,2]
[348319546,1736443869085,-3784.39,0.00011439,2]
[348319547,1736443869099,-9477.99,0.0001144,2]
[348319548,1736443869115,-500.0,0.0001144,2]
[348319549,1736443869133,-1248.09,0.0001144,2]
[348319550,1736443869145,-707.74,0.0001144,2]
[348319551,1736443869158,-2322.98,0.0001144,2]
[348319552,1736443869170,-696.04,0.0001144,2]
[348319553,1736443869185,-1021.98,0.0001144,2]
[348319554,1736443869199,-500.0,0.0001144,2]
[348319555,1736443869215,-1500.74,0.0001144,2]
[348319556,1736443869231,-1000.0,0.0001144,2]
[348319557,1736443869247,-1009.96,0.0001144,2]
[348319558,1736443869262,-2152.64,0.0001144,2]
[348319559,1736443869275,-1664.89,0.0001144,2]
[348319560,1736443869289,-151.0,0.00011442,2]
[348319561,1736443869303,-151.0,0.00011443,2]
[348319562,1736443869319,-704.37660147,0.00011443,2]
[348319563,1736443869333,-328.61391748,0.00011452,2]
[348319564,1736443869345,-150.0,0.00011468,2]
[348319565,1736443869357,-64349.48,0.00011499,4]
[348319566,1736443869374,-5996.89,0.00011499,4]
[348319567,1736443869386,-9805.72850824,0.000115,7]
[348319568,1736443869397,-3587.52862737,0.000115,2]
[348319569,1736443869410,-151.0,0.000115,2]
[348319570,1736443869425,-151.0,0.000115,2]
[348319571,1736443869439,-2751.0,0.00011507,2]
[348319572,1736443869450,-150.0,0.00011523,2]
[348319573,1736443869463,-150.0,0.00011538,2]
[348319574,1736443869477,-150.0,0.00011543,2]
[348319575,1736443869490,-154.3898907,0.00011547,2]
[348319576,1736443869502,-328.61391748,0.00011555,2]
[348319577,1736443869517,-1638.54,0.00011601,2]
[348319578,1736443869530,-1973.96,0.00011601,2]
[348319579,1736443869545,-1316.53,0.00011601,2]
[348319580,1736443869558,-3280.66,0.00011601,2]
[348319581,1736443869571,-6497.54,0.00011601,2]
[348319582,1736443869584,-3063.68,0.00011601,2]
[348319583,1736443869598,-184.53187083,0.00011611,2]
[348319584,1736443869610,-9310.74602318,0.00011612,2]
[348319585,1736443869623,-150.0,0.00011617,2]
[348319586,1736443869636,-1500.0,0.00011624,2]
[348319587,1736443869648,-150.0,0.00011632,2]
[348319588,1736443869660,-328.61391748,0.00011659,2]
[348319589,1736443869673,-177.894438,0.00011668,2]
[348319590,1736443869685,-177.894438,0.00011668,2]
[348319591,1736443869700,-177.894438,0.00011668,2]
[348319592,1736443869713,-177.894438,0.00011668,2]
[348319593,1736443869727,-177.894438,0.00011668,2]
[348319594,1736443869739,-1861.692,0.00011679,2]
[348319595,1736443869754,-1258.0,0.00011679,2]
[348319596,1736443869769,-921.717,0.00011679,2]
[348319597,1736443869781,-820.0,0.00011679,2]
[348319598,1736443869793,-3977.0,0.00011679,2]
[348319599,1736443869806,-537.0,0.00011679,2]
[348319600,1736443869819,-824.79,0.00011679,2]
[348319601,1736443869831,-2015.0,0.00011679,2]
[348319602,1736443869844,-3895.0,0.00011679,2]
[348319603,1736443869858,-150.0,0.00011679,2]
[348319604,1736443869871,-1267.0,0.00011679,2]
[348319605,1736443869883,-151.0,0.00011679,2]
[348319606,1736443869896,-150.0,0.0001168,2]
[348319607,1736443869909,-1500.0,0.00011706,2]
[348319608,1736443869921,-725.76,0.00011711,2]
[348319609,1736443869935,-500.0,0.00011711,2]
[348319610,1736443869949,-500.0,0.00011711,2]
[348319611,1736443869963,-802.65,0.00011711,2]
[348319612,1736443869977,-1098.26,0.00011711,2]
[348319613,1736443869989,-695.15,0.00011711,2]
[348319614,1736443870001,-500.0,0.00011711,2]
[348319615,1736443870013,-788.65,0.00011711,2]
[348319616,1736443870025,-578.26,0.00011711,2]
[348319617,1736443870038,-500.0,0.00011711,2]
[348319618,1736443870052,-500.0,0.00011711,2]
[348319619,1736443870069,-500.0,0.00011711,2]
[348319620,1736443870082,-1044.69,0.00011711,2]
[348319621,1736443870096,-841.24,0.00011711,2]
[348319622,1736443870109,-500.0,0.00011711,2]
[348319623,1736443870122,-500.0,0.00011711,2]
[348319624,1736443870139,-500.0,0.00011711,2]
[348319625,1736443870151,-500.0,0.00011711,2]
[348319626,1736443870164,-1057.25,0.00011711,2]
[348319627,1736443870176,-500.0,0.00011711,2]
[348319628,1736443870189,-983.27,0.00011711,2]
[348319629,1736443870204,-539.58,0.00011711,2]
[348319630,1736443870219,-500.0,0.00011711,2]
[348319631,1736443870232,-500.0,0.00011711,2]
[348319632,1736443870244,-520.83,0.00011711,2]
[348319633,1736443870257,-500.0,0.00011711,2]
[348319634,1736443870269,-500.0,0.00011711,2]
[348319635,1736443870283,-349.6030003,0.00011711,2]
[348319636,1736443870296,-1399.51,0.00011711,2]
[348319637,1736443870313,-500.0,0.00011711,2]
[348319638,1736443870325,-500.0,0.00011711,2]
[348319639,1736443870338,-1229.61,0.00011711,2]
[348319640,1736443870350,-500.0,0.00011711,2]
[348319641,1736443870362,-500.0,0.00011711,2]
[348319642,1736443870374,-694.14,0.00011711,2]
[348319643,1736443870386,-284.63466388,0.00011711,2]
[348319644,1736443870399,-500.0,0.00011711,2]
[348319645,1736443870412,-1222.94,0.00011711,2]
[348319646,1736443870426,-500.0,0.00011711,2]
[348319647,1736443870440,-547.62,0.00011711,2]
[348319648,1736443870453,-719.351032,0.00011711,2]
[348319649,1736443870467,-816.43,0.00011711,2]
[348319650,1736443870477,-500.0,0.00011711,2]
[348319651,1736443870487,-500.0,0.00011711,2]
[348319652,1736443870497,-3587.7,0.00011711,2]
[348319653,1736443870507,-500.0,0.00011711,2]
[348319654,1736443870516,-655.0205,0.00011711,2]
[348319655,1736443870527,-945.97,0.00011711,2]
[348319656,1736443870537,-500.0,0.00011711,2]
[348319657,1736443870548,-563.91,0.00011711,2]
[348319658,1736443870562,-912.71,0.00011711,2]
[348319659,1736443870572,-500.0,0.00011711,2]
[348319660,1736443870581,-1798.75,0.00011711,2]
[348319661,1736443870590,-1231.01,0.00011711,2]
[348319662,1736443870600,-500.0,0.00011711,2]
[348319663,1736443870609,-794.44,0.00011711,2]
[348319664,1736443870619,-914.02,0.00011711,2]
[348319665,1736443870628,-500.0,0.00011711,2]
[348319666,1736443870637,-787.68,0.00011711,2]
[348319667,1736443870647,-500.0,0.00011711,2]
[348319668,1736443870656,-1066.87,0.00011711,2]
[348319669,1736443870666,-1039.32,0.00011711,2]
[348319670,1736443870676,-500.0,0.00011711,2]
[348319671,1736443870686,-530.72,0.00011711,2]
[348319672,1736443870696,-500.0,0.00011711,2]
[348319673,1736443870707,-500.0,0.00011711,2]
[348319674,1736443870716,-2238.6,0.00011711,2]
[348319675,1736443870726,-953.94,0.00011711,2]
[348319676,1736443870735,-806.17,0.00011711,2]
[348319677,1736443870747,-500.0,0.00011711,2]
[348319678,1736443870757,-4802.74,0.00011711,2]
[348319679,1736443870767,-587.62,0.00011711,2]
[348319680,1736443870777,-500.0,0.00011711,2]
[348319681,1736443870787,-4690.29,0.00011711,2]
[348319682,1736443870796,-566.14,0.00011711,2]
[348319683,1736443870808,-551.39,0.00011711,2]
[348319684,1736443870817,-500.0,0.00011711,2]
[348319685,1736443870826,-782.87,0.00011711,2]
[348319686,1736443870835,-523.84,0.00011711,2]
[348319687,1736443870845,-3514.12,0.00011711,2]
[348319688,1736443870854,-611.15,0.00011711,2]
[348319689,1736443870863,-966.58,0.00011711,2]
[348319690,1736443870873,-3279.33,0.00011711,2]
[348319691,1736443870883,-709.54,0.00011711,2]
[348319692,1736443870892,-1017.08,0.00011711,2]
[348319693,1736443870903,-884.82,0.00011711,2]
[348319694,1736443870913,-1403.61,0.00011711,2]
[348319695,1736443870923,-998.27,0.00011711,2]
[348319696,1736443870934,-943.95,0.00011711,2]
[348319697,1736443870944,-500.0,0.00011711,2]
[348319698,1736443870954,-1077.27,0.00011711,2]
[348319699,1736443870964,-600.04,0.00011711,2]
[348319700,1736443871344,-727.93,0.00011711,2]
[348319701,1736443871364,-1077.25,0.00011711,2]
[348319702,1736443871390,-500.0,0.00011711,2]
[348319703,1736443871405,-514.77,0.00011711,2]
[348319704,1736443871416,-743.82,0.00011711,2]
[348319705,1736443871426,-1072.8,0.00011711,2]
[348319706,1736443871436,-1207.51,0.00011711,2]
[348319707,1736443871446,-1031.69,0.00011711,2]
[348319708,1736443871456,-500.0,0.00011711,2]
[348319709,1736443871465,-669.21,0.00011711,2]
[348319710,1736443871475,-150.0,0.00011711,2]
[348319711,1736443871485,-229.0,0.00011711,2]
[348319712,1736443871494,-160.285,0.00011711,2]
[348319713,1736443871503,-168.0,0.00011711,2]
[348319714,1736443871513,-223.0682267,0.00011712,2]
[348319715,1736443871522,-500.0,0.00011712,2]
[348319716,1736443871532,-500.0,0.00011712,2]
[348319717,1736443871542,-500.0,0.00011712,2]
[348319718,1736443871553,-500.0,0.00011712,2]
[348319719,1736443871565,-500.0,0.00011712,2]
[348319720,1736443871575,-500.0,0.00011712,2]
[348319721,1736443871584,-500.0,0.00011712,2]
[348319722,1736443871593,-500.0,0.00011712,2]
[348319723,1736443871603,-500.0,0.00011712,2]
[348319724,1736443871612,-500.0,0.00011712,2]
[348319725,1736443871621,-1022.22,0.00011712,2]
[348319726,1736443871630,-500.0,0.00011712,2]
[348319727,1736443871640,-500.0,0.00011712,2]
[348319728,1736443871649,-500.0,0.00011712,2]
[348319729,1736443871659,-1557.7,0.00011712,2]
[348319730,1736443871668,-500.0,0.00011712,2]
[348319731,1736443871677,-500.0,0.00011712,2]
[348319732,1736443871687,-500.0,0.00011712,2]
[348319733,1736443871696,-500.0,0.00011712,2]
[348319734,1736443871706,-500.0,0.00011712,2]
[348319735,1736443871715,-500.0,0.00011712,2]
[348319736,1736443871724,-500.0,0.00011712,2]
[348319737,1736443871734,-1891.11,0.00011712,2]
[348319738,1736443871744,-500.0,0.00011712,2]
[348319739,1736443871754,-500.0,0.00011712,2]
[348319740,1736443871763,-500.0,0.00011712,2]
[348319741,1736443871772,-500.0,0.00011712,2]
[348319742,1736443871782,-500.0,0.00011712,2]
[348319743,1736443871792,-574.92,0.00011712,2]
[348319744,1736443871802,-169.38658088,0.00011712,2]
[348319745,1736443871814,-1718.69,0.00011712,2]
[348319746,1736443871825,-1045.02,0.00011712,2]
[348319747,1736443871836,-500.0,0.00011712,2]
[348319748,1736443871846,-500.0,0.00011712,2]
[348319749,1736443871856,-500.0,0.00011712,2]
[348319750,1736443871866,-500.0,0.00011712,2]
[348319751,1736443871875,-665.13,0.00011712,2]
[348319752,1736443871885,-500.0,0.00011712,2]
[348319753,1736443871896,-545.39,0.00011712,2]
[348319754,1736443871906,-625.7,0.00011712,2]
[348319755,1736443871917,-500.0,0.00011712,2]
[348319756,1736443871928,-500.0,0.00011712,2]
[348319757,1736443871937,-500.0,0.00011712,2]
[348319758,1736443871947,-500.0,0.00011712,2]
[348319759,1736443871957,-500.0,0.00011712,2]
[348319760,1736443871966,-500.0,0.00011712,2]
[348319761,1736443871976,-588.3,0.00011712,2]
[348319762,1736443871985,-920.22,0.00011712,2]
[348319763,1736443871995,-500.0,0.00011712,2]
[348319764,1736443872004,-505.56,0.00011712,2]
[348319765,1736443872014,-500.0,0.00011712,2]
[348319766,1736443872023,-500.0,0.00011712,2]
[348319767,1736443872032,-628.31,0.00011712,2]
[348319768,1736443872042,-500.0,0.00011712,2]
[348319769,1736443872051,-500.0,0.00011712,2]
[348319770,1736443872062,-500.0,0.00011712,2]
[348319771,1736443872071,-500.0,0.00011712,2]
[348319772,1736443872080,-500.0,0.00011712,2]
[348319773,1736443872089,-500.0,0.00011712,2]
[348319774,1736443872099,-500.0,0.00011712,2]
[348319775,1736443872108,-565.02,0.00011712,2]
[348319776,1736443872117,-3968.46,0.00011712,2]
[348319777,1736443872128,-592.09,0.00011712,2]
[348319778,1736443872137,-912.12,0.00011712,2]
[348319779,1736443872147,-500.0,0.00011712,2]
[348319780,1736443872156,-500.0,0.00011712,2]
[348319781,1736443872167,-500.0,0.00011712,2]
[348319782,1736443872176,-500.0,0.00011712,2]
[348319783,1736443872185,-500.0,0.00011712,2]
[348319784,1736443872195,-500.0,0.00011712,2]
[348319785,1736443872208,-500.0,0.00011712,2]
[348319786,1736443872219,-607.22,0.00011712,2]
[348319787,1736443872228,-500.0,0.00011712,2]
[348319788,1736443872238,-974.62,0.00011712,2]
[348319789,1736443872247,-2345.4,0.00011712,2]
[348319790,1736443872256,-517.83,0.00011712,2]
[348319791,1736443872266,-522.25,0.00011712,2]
[348319792,1736443872276,-2345.4,0.00011712,2]
[348319793,1736443872285,-500.0,0.00011712,2]
[348319794,1736443872295,-530.63,0.00011712,2]
[348319795,1736443872304,-500.0,0.00011712,2]
[348319796,1736443872315,-500.0,0.00011712,2]
[348319797,1736443872326,-954.96,0.00011712,2]
[348319798,1736443872335,-500.0,0.00011712,2]
[348319799,1736443872346,-679.54,0.00011712,2]
[348319800,1736443872356,-532.67,0.00011712,2]
[348319801,1736443872367,-500.0,0.00011712,2]
[348319802,1736443872378,-756.22,0.00011712,2]
[348319803,1736443872388,-500.0,0.00011712,2]
[348319804,1736443872398,-500.0,0.00011712,2]
[348319805,1736443872408,-500.0,0.00011712,2]
[348319806,1736443872418,-620.44,0.00011712,2]
[348319807,1736443872428,-540.87,0.00011712,2]
[348319808,1736443872437,-564.83,0.00011712,2]
[348319809,1736443872447,-674.56,0.00011712,2]
[348319810,1736443872457,-1525.01,0.00011712,2]
[348319811,1736443872466,-500.0,0.00011712,2]
[348319812,1736443872476,-500.0,0.00011712,2]
[348319813,1736443872485,-601.46,0.00011712,2]
[348319814,1736443872495,-500.0,0.00011712,2]
[348319815,1736443872505,-561.3,0.00011712,2]
[348319816,1736443872515,-500.0,0.00011712,2]
[348319817,1736443872526,-510.74,0.00011712,2]
[348319818,1736443872536,-500.0,0.00011712,2]
[348319819,1736443872546,-500.0,0.00011712,2]
[348319820,1736443872557,-597.46,0.00011712,2]
[348319821,1736443872566,-500.0,0.00011712,2]
[348319822,1736443872576,-521.05,0.00011712,2]
[348319823,1736443872585,-809.13,0.00011712,2]
[348319824,1736443872596,-500.0,0.00011712,2]
[348319825,1736443872606,-500.0,0.00011712,2]
[348319826,1736443872615,-500.0,0.00011712,2]
[348319827,1736443872624,-500.0,0.00011712,2]
[348319828,1736443872633,-535.04,0.00011712,2]
[348319829,1736443872642,-500.0,0.00011712,2]
[348319830,1736443872651,-618.93,0.00011712,2]
[348319831,1736443872661,-500.0,0.00011712,2]
[348319832,1736443872671,-500.0,0.00011712,2]
[348319833,1736443872682,-1835.84,0.00011712,2]
[348319834,1736443872694,-500.0,0.00011712,2]
[348319835,1736443872704,-500.0,0.00011712,2]
[348319836,1736443872714,-500.0,0.00011712,2]
[348319837,1736443872724,-756.03,0.00011712,2]
[348319838,1736443872733,-500.0,0.00011712,2]
[348319839,1736443872743,-500.0,0.00011712,2]
[348319840,1736443872752,-500.0,0.00011712,2]
[348319841,1736443872762,-500.0,0.00011712,2]
[348319842,1736443872771,-500.0,0.00011712,2]
[348319843,1736443872781,-500.0,0.00011712,2]
[348319844,1736443872791,-500.0,0.00011712,2]
[348319845,1736443872801,-747.58,0.00011712,2]
[348319846,1736443872817,-569.94,0.00011712,2]
[348319847,1736443872826,-389.50354897,0.00011712,2]
[348319848,1736443872835,-890.19,0.00011712,2]
[348319849,1736443872844,-896.0,0.00011712,2]
[348319850,1736443872853,-500.0,0.00011712,2]
[348319851,1736443872862,-500.0,0.00011712,2]
[348319852,1736443872872,-500.0,0.00011712,2]
[348319853,1736443872881,-500.0,0.00011712,2]
[348319854,1736443872890,-647.63198306,0.00011712,2]
[348319855,1736443872900,-512.51,0.00011712,2]
[348319856,1736443872909,-500.0,0.00011712,2]
[348319857,1736443872918,-500.0,0.00011712,2]
[348319858,1736443872928,-180.65925996,0.00011712,2]
[348319859,1736443872938,-500.0,0.00011712,2]
[348319860,1736443872947,-598.04,0.00011712,2]
[348319861,1736443872956,-500.0,0.00011712,2]
[348319862,1736443872966,-500.0,0.00011712,2]
[348319863,1736443872975,-500.0,0.00011712,2]
[348319864,1736443872984,-500.0,0.00011712,2]
[348319865,1736443872993,-683.94,0.00011712,2]
[348319866,1736443873002,-608.37,0.00011712,2]
[348319867,1736443873011,-500.0,0.00011712,2]
[348319868,1736443873021,-500.0,0.00011712,2]
[348319869,1736443873030,-631.08,0.00011712,2]
[348319870,1736443873039,-500.0,0.00011712,2]
[348319871,1736443873049,-1014.23,0.00011712,2]
[348319872,1736443873064,-500.0,0.00011712,2]
[348319873,1736443873073,-500.0,0.00011712,2]
[348319874,1736443873083,-500.0,0.00011712,2]
[348319875,1736443873092,-996.35,0.00011712,2]
[348319876,1736443873102,-573.78,0.00011712,2]
[348319877,1736443873111,-500.0,0.00011712,2]
[348319878,1736443873121,-500.0,0.00011712,2]
[348319879,1736443873135,-500.0,0.00011712,2]
[348319880,1736443873144,-500.0,0.00011712,2]
[348319881,1736443873154,-4382.44,0.00011712,2]
[348319882,1736443873163,-500.0,0.00011712,2]
[348319883,1736443873172,-379.52614332,0.00011712,2]
[348319884,1736443873181,-5361.04,0.00011712,2]
[348319885,1736443873191,-198.60654658,0.00011712,2]
[348319886,1736443873201,-2902.65,0.00011712,2]
[348319887,1736443873213,-565.44,0.00011712,2]
[348319888,1736443873223,-563.14,0.00011712,2]
[348319889,1736443873232,-800.64,0.00011712,2]
[348319890,1736443873242,-500.0,0.00011712,2]
[348319891,1736443873251,-2140.08,0.00011712,2]
[348319892,1736443873260,-1935.58,0.00011712,2]
[348319893,1736443873269,-4415.78,0.00011712,2]
[348319894,1736443873279,-1088.97,0.00011712,2]
[348319895,1736443873288,-500.0,0.00011712,2]
[348319896,1736443873297,-889.5,0.00011712,2]
[348319897,1736443873307,-1882.85,0.00011712,2]
[348319898,1736443873318,-549.99,0.00011712,2]
[348319899,1736443873327,-605.98,0.00011712,2]
[348319900,1736443873337,-500.16,0.00011712,2]
[348319901,1736443873347,-4339.17,0.00011712,2]
[348319902,1736443873356,-500.0,0.00011712,2]
[348319903,1736443873366,-1246.1,0.00011712,2]
[348319904,1736443873376,-599.86,0.00011712,2]
[348319905,1736443873386,-500.0,0.00011712,2]
[348319906,1736443873395,-500.0,0.00011712,2]
[348319907,1736443873405,-635.1,0.00011712,2]
[348319908,1736443873414,-1535.05,0.00011712,2]
[348319909,1736443873424,-500.0,0.00011712,2]
[348319910,1736443873433,-551.96,0.00011712,2]
[348319911,1736443873444,-3444.79,0.00011712,2]
[348319912,1736443873454,-1978.41,0.00011712,2]
[348319913,1736443873464,-500.0,0.00011712,2]
[348319914,1736443873474,-500.0,0.00011712,2]
[348319915,1736443873484,-500.0,0.00011712,2]
[348319916,1736443873493,-1866.2,0.00011712,2]
[348319917,1736443873503,-500.0,0.00011712,2]
[348319918,1736443873512,-500.0,0.00011712,2]
[348319919,1736443873523,-500.0,0.00011712,2]
[348319920,1736443873532,-522.76,0.00011712,2]
[348319921,1736443873541,-500.0,0.00011712,2]
[348319922,1736443873553,-500.0,0.00011712,2]
[348319923,1736443873565,-930.0,0.00011712,2]
[348319924,1736443873574,-1363.26,0.00011712,2]
[348319925,1736443873583,-500.0,0.00011712,2]
[348319926,1736443873593,-1261.63,0.00011712,2]
[348319927,1736443873602,-527.06,0.00011712,2]
[348319928,1736443873612,-1405.84,0.00011712,2]
[348319929,1736443873622,-1663.75,0.00011712,2]
[348319930,1736443873633,-500.0,0.00011713,2]
[348319931,1736443873643,-500.0,0.00011713,2]
[348319932,1736443873655,-500.0,0.00011713,2]
[348319933,1736443873666,-500.0,0.00011713,2]
[348319934,1736443873677,-500.0,0.00011713,2]
[348319935,1736443873687,-500.0,0.00011713,2]
[348319936,1736443873697,-500.0,0.00011713,2]
[348319937,1736443873710,-500.0,0.00011713,2]